Cogmind - Beta 15 @@@ ROGUE MODE // 2025.09.30 @ 21:49:10 Player: Figgis Result: Destroyed by 98-44Z(R) with Subdweller Beam Cannon Performance ------------- Evolutions (0) 0 Regions Visited (3) 600 Robots Destroyed (13) 65 Value Destroyed (267) 267 Prototype IDs (0) 0 Alien Tech Used (0) 0 Bonus (-36) -36 TOTAL SCORE: 896 Bonus ------- Friendly Fire -36 Cogmind --------- Core Integrity 0/250 Matter 247/300 Energy 264/265 System Corruption 4% Temperature Cool (9) Movement Core (550) Ox10 Location -10/Subcaves Parts ------- > --- POWER (1) -------- Improved Ion Engine > --- PROPULSION (2) --- (None) > --- UTILITY (2) ------ Large Storage Unit Visual Processing Unit > --- WEAPON (2) ------- Light Assault Rifle Grenade Launcher > --- INVENTORY (15) --- Improved Ion Engine Improved Ion Engine Light Nuclear Core Aluminum Leg Aluminum Leg EM Pulse Gun Peak State ------------ > --- POWER ------------ Improved Ion Engine > --- PROPULSION ------- Aluminum Leg Aluminum Leg > --- UTILITY ---------- Small Storage Unit Visual Processing Unit > --- WEAPON ----------- Small Laser Light Assault Rifle > --- INVENTORY -------- Light Ion Engine Improved Ion Engine Improved Ion Engine Improved Ion Engine EM Pulse Gun Light Assault Rifle Grenade Launcher [Rating: 10] Favorites ----------- Power Light Ion Engine Engine Light Ion Engine Propulsion Aluminum Leg Leg Aluminum Leg Utility Visual Processing Unit Storage Large Storage Unit Processor Visual Processing Unit Weapon Light Assault Rifle Energy Gun Small Laser Ballistic Gun Light Assault Rifle Launcher Grenade Launcher Build | -11 -10 -10 -10 ------- Run | Yrd Mat Min Sub Slots Evolved . | . . . . Power . | . . . . Propulsion . | . . . . Utility . | . . . . Weapon . | . . . . Parts Attached 15 | 3 8 1 3 Power 4 | 1 2 . 1 Engine 4 | 1 2 . 1 Core . | . . . . Reactor . | . . . . Propulsion 3 | 2 . . 1 Treads . | . . . . Leg 3 | 2 . . 1 Wheel . | . . . . Hover . | . . . . Flight . | . . . . Utility 3 | . 3 . . Device . | . . . . Storage 2 | . 2 . . Processor 1 | . 1 . . Hackware . | . . . . Protection . | . . . . Artifact . | . . . . Weapon 5 | . 3 1 1 Energy Gun 1 | . 1 . . Energy Cannon . | . . . . Ballistic Gun 3 | . 2 1 . Ballistic Cannon . | . . . . Launcher 1 | . . . 1 Special Weapon . | . . . . Impact Weapon . | . . . . Slashing Weapon . | . . . . Piercing Weapon . | . . . . Special Melee Weapon . | . . . . Unidentified Prototypes . | . . . . Parts Lost 7 | . 1 3 3 Power 2 | . 1 1 . Propulsion 3 | . . 1 2 Utility . | . . . . Weapon 2 | . . 1 1 Highest Loss Streak 3 | . 1 3 3 To Critical Strikes . | . . . . Average Backups 7 | 3 7 9 7 Power 3 | . 3 4 3 Propulsion 1 | . . 3 2 Utility . | . . . . Weapon 2 | 1 2 2 1 Tool/Special . | . . . . Unused Backups 6 | . . . 6 Power 3 | . . . 3 Propulsion 2 | . . . 2 Utility . | . . . . Weapon 1 | . . . 1 Tool/Special . | . . . . Average Slot Usage (%) 92 | . 97 83 80 Engine 10 | . 13 6 9 Leg 25 | . 28 20 18 Storage 13 | . 13 14 14 Processor 13 | . 13 14 14 Energy Gun 13 | . 13 14 4 Ballistic Gun 13 | . 13 13 9 Peak Build Rating 10 | 3 10 9 10 Average Rating 8 | 1 9 7 8 On Entrance 4 | . 3 9 7 Naked Turns . | . . . . Heaviest Build 25 | 3 25 25 . Greatest Support 20 | 3 20 20 . Greatest Overweight (x) 2 | . 1 2 . Average Overweight (x) . | . . 1 . Largest Inventory Capacity 15 | 5 15 15 15 Average Capacity 12 | 5 10 15 15 Most Carried 10 | 5 10 10 8 Average Carried 7 | 3 7 9 6 Final Capacity 15 | 5 15 15 15 Final Carried 10 | 5 10 9 6 Class Distribution -------------------- 100% | Mutant Dominant Class ---------------- Mutant | -10/Materials Mutant | -10/Mines Mutant | -10/Subcaves Resources | -11 -10 -10 -10 ----------- Run | Yrd Mat Min Sub Matter Collected 358 | 177 169 12 . Remotely . | . . . . Salvage Created 382 | . 333 29 20 Parts 25 | . 24 . 1 Haulers Intercepted 1 | . 1 . . Recyclers Shooed . | . . . . Parts Field Recycled . | . . . . Retrieved Matter . | . . . . Parts Self-Destructed . | . . . . Prevented . | . . . . Kills | -11 -10 -10 -10 ------- Run | Yrd Mat Min Sub Combat Hostiles Destroyed 13 | . 10 2 1 Guns 12 | . 10 2 . AOE 1 | . . . 1 Classes Destroyed 6 | . 4 1 1 Hauler 1 | . 1 . . Watcher 1 | . 1 . . Swarmer 6 | . 6 . . Grunt 4 | . 4 . . Subdweller 1 | . . . 1 Assembled 2 | . . 2 . Best Kill Streak 4 | . 4 2 1 Combat Bots Only 3 | . 3 2 1 Max Kills in Single Turn 1 | . 1 1 1 Gunslinging . | . . . . Exploded 1 | . . . 1 Melee . | . . . . Uniques/NPCs Destroyed . | . . . . Combat | -11 -10 -10 -10 -------- Run | Yrd Mat Min Sub Hostile Shots Fired 89 | . 66 9 14 Missed 20 | . 15 1 4 Hits 69 | . 51 8 10 Melee 6 | . . 6 . Projectile 63 | . 51 2 10 Critical Strikes 2 | . 1 . 1 Damage Taken 939 | . 453 190 296 Core 254 | . 94 43 117 Absorbed by Shields . | . . . . Core Remaining (%) 100 | 100 . . . Volleys Fired 62 | . 43 9 10 Largest 2 | . 2 2 1 Hottest 60 | . 60 60 30 Shots Fired 108 | . 85 13 10 Gun 106 | . 85 13 8 Cannon . | . . . . Launcher 2 | . . . 2 Special . | . . . . Kinetic 55 | . 43 4 8 Thermal 51 | . 42 9 . Explosive 2 | . . . 2 Electromagnetic . | . . . . Robot Hit Streak 6 | . 6 3 4 Robot Miss Streak 4 | . 4 4 1 Penetration Max . | . . . . Secondary Targets 3 | . 3 . . Max Gunslinging Chain 1 | . 1 . . Shots Hit Robots 59 | . 46 7 6 Core Hits 32 | . 24 4 4 Critical Kills . | . . . . Critical Parts Destroyed . | . . . . Critical Strikes . | . . . . Melee Attacks . | . . . . Impact . | . . . . Slashing . | . . . . Piercing . | . . . . Sneak Attacks . | . . . . Combat Hostiles . | . . . . Follow-up Attacks . | . . . . Damage Inflicted 747 | . 459 74 214 Guns 530 | . 456 74 . Cannons . | . . . . Explosions 214 | . . . 214 Melee . | . . . . Ramming 3 | . 3 . . Kinetic 187 | . 171 16 . Thermal 343 | . 285 58 . Explosive 214 | . . . 214 Electromagnetic . | . . . . Impact . | . . . . Slashing . | . . . . Piercing . | . . . . Highest Corruption 4 | . . 4 4 Average Corruption 4 | . . 4 4 Corruption Purged . | . . . . Corruption Blocked . | . . . . Effects 3 | . . 2 1 Heat Flow Errors 1 | . . . 1 Data Loss (minor) 1 | . . 1 . Data Loss (major) 1 | . . 1 . Overload Shots . | . . . . Overflow Damage . | . . . . Projectiles . | . . . . Explosions . | . . . . Melee . | . . . . Knockbacks . | . . . . Impact . | . . . . Kinetic . | . . . . Secondary . | . . . . Self-Inflicted Damage 22 | . . . 22 Shots 1 | . . . 1 Rammed . | . . . . Targets Rammed 1 | . 1 . . Kicked 1 | . 1 . . Crushed . | . . . . Highest Temperature 189 | . 82 20 189 Average Temperature 31 | . 28 9 102 Received Heat Transfer 186 | . 84 12 90 Siege Activations . | . . . . Martial Activations . | . . . . Shielding Activations . | . . . . Robots Disrupted . | . . . . Combat Hostiles . | . . . . Robots Corrupted . | . . . . Combat Hostiles . | . . . . Parts Fried . | . . . . Impact Corruptions . | . . . . Robots Melted . | . . . . Combat Hostiles . | . . . . Parts Melted 1 | . 1 . . Heat Transferred 775 | . 650 125 . Parts Sabotaged . | . . . . Parts Stolen . | . . . . Parts Stripped . | . . . . Power Chain Reactions . | . . . . Alert | -11 -10 -10 -10 ------- Run | Yrd Mat Min Sub Maximum Alert Level . | . . . . Low Security (%) 100 | 100 100 100 . Level 1 . | . . . . Level 2 . | . . . . Level 3 . | . . . . Level 4 . | . . . . Level 5 . | . . . . High Security . | . . . . Max Security . | . . . . Peak Influence 70 | . 70 15 . Initial 15 | . . 15 . Average 20 | . 32 1 . Influence Increases 254 | . 254 . . Destroy 0b10 Robot/C 200 | . 200 . . Destroy 0b10 Robot/NC 10 | . 10 . . Destroy Leader 44 | . 44 . . Influence Decreases 254 | . 213 41 . Entered New Map 26 | . . 26 . Time Decay 218 | . 203 15 . Lost Part 10 | . 10 . . Squads Dispatched 3 | . 3 . . Investigation 2 | . 2 . . Extermination . | . . . . Reinforcement 1 | . 1 . . Assault . | . . . . Garrison . | . . . . Intercept . | . . . . Searches Triggered . | . . . . Construction Impeded . | . . . . Haulers Reinforced . | . . . . Active Scanning Responses . | . . . . Cargo Convoy Interrupts . | . . . . Stealth | -11 -10 -10 -10 --------- Run | Yrd Mat Min Sub Distress Signals 1 | . 1 . . Communications Jammed . | . . . . Distress Signals . | . . . . Times Spotted 20 | . 15 3 2 Peak Tracking Total 4 | . 4 2 2 Tactical Retreats . | . . . . Traps | -11 -10 -10 -10 ------- Run | Yrd Mat Min Sub Traps Triggered 1 | . 1 . . Indirectly . | . . . . Trap Hack Attempts . | . . . . Triggered . | . . . . Disarmed . | . . . . Reprogrammed . | . . . . Reused . | . . . . Traps Extracted . | . . . . Installed . | . . . . Triggered . | . . . . Machines | -11 -10 -10 -10 ---------- Run | Yrd Mat Min Sub Machines Disabled . | . . . . Max in Single Turn . | . . . . Machines Repaired . | . . . . Machines Dismantled . | . . . . Machines Sabotaged . | . . . . Overloaded Fab Kills . | . . . . Hacking | -11 -10 -10 -10 --------- Run | Yrd Mat Min Sub Machines Accessed 4 | . 4 . . Terminals 4 | . 4 . . Fabricators . | . . . . Repair Stations . | . . . . Recycling Units . | . . . . Scanalyzers . | . . . . Garrison Access . | . . . . Total Hacks 9 | . 9 . . Successful 1 | . 1 . . Failed 8 | . 8 . . Catastrophic 2 | . 2 . . Database Lockouts . | . . . . Manual 9 | . 9 . . Terminals 9 | . 9 . . Fabricators . | . . . . Repair Stations . | . . . . Recycling Units . | . . . . Scanalyzers . | . . . . Garrison Access . | . . . . Terminal Hacks 1 | . 1 . . Robot Analysis 1 | . 1 . . Fabricator Hacks . | . . . . Repair Station Hacks . | . . . . Recycling Unit Hacks . | . . . . Scanalyzer . | . . . . Garrison Access Hacks . | . . . . Unauthorized Hacks . | . . . . Terminals . | . . . . Fabricators . | . . . . Repair Stations . | . . . . Recycling Units . | . . . . Scanalyzers . | . . . . Garrison Access . | . . . . Data Cores Recovered . | . . . . Used . | . . . . Hacking Detections 4 | . 4 . . Full Trace Events 1 | . 1 . . Feedback Events . | . . . . Feedback Blocked . | . . . . Robot Schematics Acquired . | . . . . Robots Built . | . . . . Authchips . | . . . . Time . | . . . . Total Robot Build Rating . | . . . . Part Schematics Acquired . | . . . . Parts Built . | . . . . Authchips . | . . . . Time . | . . . . Total Part Build Rating . | . . . . Parts Repaired . | . . . . Time . | . . . . Parts Recycled . | . . . . Recycled Matter . | . . . . Retrieved Matter . | . . . . Retrieved Components . | . . . . Parts Scanalyzed . | . . . . Part Schematics Acquired . | . . . . Parts Damaged . | . . . . Bothacking | -11 -10 -10 -10 ------------ Run | Yrd Mat Min Sub Used RIF Installer . | . . . . Robots Hacked . | . . . . Non-combat . | . . . . Combat . | . . . . Robot Hacks Applied . | . . . . Relay Couplers Released . | . . . . Fabnet Peak Effective % . | . . . . Robots Rewired . | . . . . Allies Hacked . | . . . . Hacks Repelled . | . . . . Allies | -11 -10 -10 -10 -------- Run | Yrd Mat Min Sub Total Allies . | . . . . Largest Group . | . . . . Highest-Rated Group . | . . . . Highest-Rated Ally . | . . . . Total Orders . | . . . . Ally Attacks . | . . . . Total Damage . | . . . . Kills . | . . . . Allies Corrupted . | . . . . Allies Melted . | . . . . Intel | -11 -10 -10 -10 ------- Run | Yrd Mat Min Sub Active Infowar (turns) 829 | . 517 289 23 Optics 829 | . 517 289 23 Robot Analysis Total 1 | . 1 . . Derelict Logs Recovered 2 | . . 2 . Drone Launches . | . . . . Drone Recoveries . | . . . . Exploration | -11 -10 -10 -10 ------------- Run | Yrd Mat Min Sub Turns Passed 876 | 26 538 289 23 Spaces Moved 432 | 31 281 120 . Core 41 | 31 10 . . Treads . | . . . . Legs 391 | . 271 120 . Wheels . | . . . . Hover . | . . . . Flight . | . . . . Fastest Speed 50 | 50 50 190 . Average Speed 156 | 50 139 224 . Slowest Speed 260 | 50 190 260 . Overloaded Moves . | . . . . Propulsion Burnouts . | . . . . Robots Hopped . | . . . . Potential Cave-ins . | . . . . Cave-ins Triggered . | . . . . Exploration Rate (%) 23 | 3 56 34 1 Regions Visited 3 Branch Regions 2 Pre-discovered Areas 2 | . . 2 . Known Exits Taken . | . . . . Unknown Exits Taken 3 | 1 1 1 . Scrap Searched . | . . . . Spaces Dug 13 | . . . 13 Terrain Destroyed 13 | . . . 13 Melee . | . . . . Projectile . | . . . . AOE 13 | . . . 13 Terrain Rammed . | . . . . Walls Destroyed . | . . . . Machines Disabled . | . . . . Actions | -11 -10 -10 -10 --------- Run | Yrd Mat Min Sub Total 533 | 40 350 129 14 Wait 3 | . 3 . . Move 429 | 30 280 119 . Hop . | . . . . Pick Up 19 | 7 12 . . Fast Attach 1 | 1 . . . Attach 11 | 2 5 1 3 Detach . | . . . . Swap 4 | . 3 . 1 Drop 3 | . 3 . . Fire 62 | . 43 9 10 Melee . | . . . . Ram . | . . . . Kick 1 | . 1 . . Crush . | . . . . Escape Stasis . | . . . . Rewire . | . . . . Trap . | . . . . Miscellaneous . | . . . . Route ------- -11/Scrapyard -10/Materials (discovered 2 exits: [*Min x2]) -10/Mines -10/Subcaves History --------- Turn | Location | Event 10 | -11/Scrapyard | Discovered new exit (range 15) 27 | -11/Scrapyard | Entered Materials 50 | -10/Materials | Discovered new exit (range 12) 239 | -10/Materials | Discovered new exit (range 9) 335 | -10/Materials | Build established: Mutant 565 | -10/Materials | Entered Mines 566 | -10/Mines | Learned location of Storage (-9) 679 | -10/Mines | Excavation squad dispatched 679 | -10/Mines | A large section of the Mines collapsed 684 | -10/Mines | Core integrity fell below 50% 723 | -10/Mines | Lost 3 parts (1p1n1w) 802 | -10/Mines | Learned location of Zion (-7) 810 | -10/Mines | Discovered new exit (range 10) 854 | -10/Mines | Entered Subcaves 855 | -10/Subcaves | Approached by a straggling Scientist 856 | -10/Subcaves | Ambushed by Subdwellers from Twisted Machinery 860 | -10/Subcaves | Core integrity fell below 20% 877 | -10/Subcaves | Destroyed by 98-44Z(R) with Subdweller Beam Cannon Last Messages --------------- 00853_ T-07 Excavator is excavating. 00853_ U-05 Engineer lays Concrete. 00853_ K-01 Serf collects debris. 00854_ U-05 Engineer lays Concrete. 00854_ T-07 Excavator destroyed. LOCATION=UNKNOWN AMBIENT_HEAT=-10 GOAL=ESCAPE 00855_ AD-YTI(c): "Thank the algorithms! I was beginning to lose hope I'd never make it past all the Subs lurking out here." 00856_ T1-0PS(R) emerges from the Twisted Machinery. 00857_ Sml. Laser destroyed. 00857_ Aluminum Leg destroyed. 00858_ AD-YTI(c): "Hey, let me tag along and I can get us both out of this nasty situation. At least I think I can... The group I got separated from was talking about a shortcut back to the UFD." 00860_ System corrupted: Heat flow error (+213). 00860_ T1-0PS(R) destroyed. 00869_ The unstable cave ceiling collapses. 00877_ Aluminum Leg destroyed. Map ----- +----------------------------------------------------+ | ??????????????????????????????????????????? | | ??????????????????????????????????????????? | | ??????????????????????????????????????????? | | ??????????????????????????????????????????? | | ??????????????????????????????????????????? | | ??????????????????????????????????????????? | | ??????????????????????????????????????????? | | ??????????????????????????????????????????? | | ??????????????????????????????????????????? | | ??????????????????????????????????????????? | | ??????????????????????????????????????????? | | ??????????????????????????????????????????? | | ??????????????????????????????????????????? | | ??????????????????????????????????????????? | | ??????????????????????????????????????????? | | ??????????????????????????????????????????? | | ??????????????????????????????????????????? | | ??????????????????????????????????????????? | | ??????????????????????????????????????????? | | ???????????????????##?????????????????????? | | ???????????????????# ##???????????????????? | | ???????????????????# #;??????????????????? | | ??????????????????## ;###???????????????? | | ??????????????????? ####????????????? | | ?????????????????????# c #????????????? | | ?????????????????????# @ #?????????????? | | ?????????????????????## #?????????????? | | ?????????????????????# #?????????????? | | ?????????????????????# ! #?????????????? | | ?????????????????????# R%& #?????????????? | | ?????????????????????## ####?????????????? | | ??????????????????????# ?????????????????? | | ?????????????????????? ?????????????????? | | ??????????????????????# ?????????????????? | | ?????????????????????? ?????????????????? | | ?????????????????????? ?????????????????? | | ??????????????????????"""?????????????????? | | ????????????????????? #?????????????????? | | ????????????????????? ##??????????????????? | | ????????????????????? ????????????????????? | | ??????????????????????????????????????????? | | ??????????????????????????????????????????? | | ??????????????????????????????????????????? | | ??????????????????????????????????????????? | | ??????????????????????????????????????????? | | ??????????????????????????????????????????? | | ??????????????????????????????????????????? | | ??????????????????????????????????????????? | | ??????????????????????????????????????????? | | ??????????????????????????????????????????? | +----------------------------------------------------+ Best States ------------- Heat Dissipation 25 Energy Generation 12 Energy Capacity 265 Matter Stores 300 Matter Capacity 300 Sight Range 18 Terrain Scan Density 10 Evasion (%) 55 Item Schematics ----------------- None Robot Schematics ------------------ None Fabricated ------------ Nothing Repaired ---------- Nothing Alien Tech Used ----------------- None Achievements -------------- None Challenges ------------ None Game ------ Seed BiometalMappingMultirail Manual? 0 Play Time 00:06:09 Cumulative 195.9 hours Start 2025.09.30 @ 21:40:49 End 2025.09.30 @ 21:49:10 Sessions 1 Manual Loads 0 Difficulty Rogue Special Mode None Game No. 316 Rogue 313 Adventurer 3 Explorer 0 Win Type - Total 1 Types 1/0/0/0/0/0/0/0/0/0 Lore% 65 Gallery% 60 Achievement% 47 Wizard Run 0 Options --------- Layout 0 ASCII 0 Keyboard 0 Movement Mouse Keybinds 0 Fullscreen 2 Font 18/SmallcapsGlow Map View 76x50 Zoom Use 0% Tactical HUD 1 Map Filters NONE Filters NONE Steam 1 RUN: 4debf47b-cf9e-4b51-ba3b-31e29d3ca5be